[Event "FISCA Open 2022"]
[Site "Cap Aurora"]
[Date "2022.06.27"]
[Round "7.9"]
[White "Donici-Maier, David"]
[Black "Mihailiuc, Flavius-Iulian"]
[Result "0-1"]
[ECO "B91"]
[WhiteElo "1786"]
[BlackElo "1820"]
[Annotator "NA RC"]
[PlyCount "108"]
[EventDate "2022.06.22"]
[EventType "swiss"]
[EventCountry "ROU"]
[SourceTitle "playchess.com"]
[Source "ChessBase"]
[SourceQuality "1"]
[TimeControl "5400+30"]

1. e4 {[%emt 0:02:25]} c5 {[%emt 0:04:26]} 2. Nf3 {[%emt 0:00:15]} a6 {[%emt 0:00:07]} 3. g3 {[%emt 0:00:44]} g6 {[%emt 0:00:12]} 4. Bg2 {[%emt 0:00:29]} Bg7 {[%emt 0:00:11]} 5. d4 {[%emt 0:00:51]} cxd4 {[%emt 0:00:09]} 6. Nxd4 {[%emt 0:00:07]} Nc6 {[%emt 0:00:07]} 7. Be3 {[%emt 0:00:45]} d6 {[%emt 0:01:50]} 8. O-O {[%emt 0:00:59]} Nf6 {[%emt 0:00:12]} 9. h3 {[%emt 0:01:48]} O-O {[%emt 0:00:15]} 10. Nc3 {[%emt 0:01:17]} Bd7 {[%emt 0:01:41]} 11. Kh2 {[%emt 0:05:27]} Rc8 {[%emt 0:00:14]} 12. f4 {[%emt 0:05:22]} b5 {[%emt 0:03:39]} 13. Nb3 {[%emt 0:07:26]} Na5 {[%emt 0:03:36]} 14. Nxa5 {[%emt 0:02:34]} Qxa5 {[%emt 0:00:38]} 15. Bd4 {[%emt 0:05:44]} b4 {[%emt 0:01:36]} 16. e5 {[%emt 0:10:49]} bxc3 {[%emt 0:02:44]} 17. exf6 {[%emt 0:05:05]} Bxf6 {[%emt 0:01:10]} 18. Bxf6 {[%emt 0:02:07]} exf6 {[%emt 0:00:13]} 19. bxc3 {[%emt 0:08:05]} Qxc3 {[%emt 0:07:43]} 20. Qxd6 {[%emt 0:07:56]} Bb5 {[%emt 0:03:23]} 21. Rfd1 {[%emt 0:06:39]} Qxc2 {[%emt 0:00:41]} 22. Rd2 {[%emt 0:01:40]} Qc3 {[%emt 0:01:08]} 23. Rad1 {[%emt 0:02:36]} Kg7 {[%emt 0:01:32]} 24. Qd4 {[%emt 0:03:11]} Qc7 {[%emt 0:01:22]} 25. Qb2 {[%emt 0:02:09]} Rfe8 {[%emt 0:01:41]} 26. Rd6 {[%emt 0:02:49]} Qc3 {[%emt 0:01:54]} 27. Qxc3 {[%emt 0:02:49]} Rxc3 {[%emt 0:00:45]} 28. R1d2 {[%emt 0:00:59]} g5 {[%emt 0:02:22]} 29. fxg5 {[%emt 0:06:30]} fxg5 {[%emt 0:00:02]} 30. a4 {[%emt 0:00:15]} Bxa4 {[%emt 0:01:24]} 31. Rxa6 {[%emt 0:00:09]} Bb3 {[%emt 0:00:07]} 32. Rad6 {[%emt 0:02:36]} Ree3 {[%emt 0:03:07]} 33. g4 {[%emt 0:00:55]} Be6 {[%emt 0:00:01]} 34. Rc6 {[%emt 0:01:46]} Ra3 {[%emt 0:01:47]} 35. Rc5 {[%emt 0:00:16]} Kg6 {[%emt 0:00:18]} 36. Rcc2 {[%emt 0:02:00]} h5 {[%emt 0:00:38]} 37. gxh5+ {[%emt 0:00:25]} Kxh5 {[%emt 0:00:00]} 38. Re2 {[%emt 0:00:41]} Rg3 {[%emt 0:00:35]} 39. Rf2 {[%emt 0:00:15]} Kg6 {[%emt 0:01:20]} 40. Rc6 {[%emt 0:00:32]} Kg7 {[%emt 0:00:42]} 41. Rc7 {[%emt 0:00:15]} Kg8 {[%emt 0:03:37]} 42. Rb7 {[%emt 0:01:02]} Kh7 {[%emt 0:03:42]} 43. Rc7 {[%emt 0:00:28]} Rgb3 {[%emt 0:01:10]} 44. Be4+ {[%emt 0:00:43]} Kg7 {[%emt 0:01:22]} 45. Bf5 {[%emt 0:00:32]} Bd5 {[%emt 0:07:28]} 46. Rc1 {[%emt 0:00:21]} Rf3 {[%emt 0:00:48]} 47. Rxf3 {[%emt 0:00:33]} Rxf3 {[%emt 0:00:01]} 48. Bc8 {[%emt 0:00:35]} Rf2+ {[%emt 0:00:28]} 49. Kg1 {[%emt 0:00:20]} Rg2+ {[%emt 0:00:23]} 50. Kf1 {[%emt 0:00:05]} Rd2 {[%emt 0:00:03]} 51. Rc5 {[%emt 0:01:02]} Kg6 {[%emt 0:00:55]} 52. Ke1 {[%emt 0:00:19]} Rd4 {[%emt 0:00:03]} 53. Ke2 {[%emt 0:00:28]} Rc4 {[%emt 0:00:54]} 54. Rxd5 {[%emt 0:01:20]} Rxc8 {[%emt 0:41:04]} 0-1

[Event "FISCA Open 2022"]
[Site "Cap Aurora"]
[Date "2022.06.27"]
[Round "7.10"]
[White "Puia, Alexia-Teodora"]
[Black "Nacu, Mihai"]
[Result "1-0"]
[ECO "D00"]
[WhiteElo "1787"]
[BlackElo "1641"]
[Annotator "NA RC"]
[PlyCount "101"]
[EventDate "2022.06.22"]
[EventType "swiss"]
[EventCountry "ROU"]
[SourceTitle "playchess.com"]
[Source "ChessBase"]
[SourceQuality "1"]
[TimeControl "5400+30"]

1. d4 {[%emt 0:01:41]} d5 {[%emt 0:00:15]} 2. Bf4 {[%emt 0:00:23]} c5 {[%emt 0:00:43]} 3. c3 {[%emt 0:00:16]} Nc6 {[%emt 0:00:19]} 4. e3 {[%emt 0:00:58]} Qb6 {[%emt 0:00:22]} 5. Qb3 {[%emt 0:00:40]} c4 {[%emt 0:00:26]} 6. Qxb6 {[%emt 0:01:28]} axb6 {[%emt 0:00:06]} 7. Nd2 {[%emt 0:00:53]} b5 {[%emt 0:02:11]} 8. e4 {[%emt 0:08:16]} Nf6 {[%emt 0:01:10]} 9. exd5 {[%emt 0:02:36]} Nxd5 {[%emt 0:00:06]} 10. Bg3 {[%emt 0:00:16]} Bf5 {[%emt 0:05:05]} 11. Ngf3 {[%emt 0:03:54]} e6 {[%emt 0:02:51]} 12. Be2 {[%emt 0:05:18]} Be7 {[%emt 0:24:17]} 13. O-O {[%emt 0:04:44]} O-O {[%emt 0:03:44]} 14. a4 {[%emt 0:06:58]} b4 {[%emt 0:27:05]} 15. Rfc1 {[%emt 0:09:46]} bxc3 {[%emt 0:00:21]} 16. bxc3 {[%emt 0:00:05]} Nb6 {[%emt 0:04:42]} 17. Nxc4 {[%emt 0:08:48]} Nxa4 {[%emt 0:01:32]} 18. Bd1 {[%emt 0:00:52]} b5 {[%emt 0:01:30]} 19. Bxa4 {[%emt 0:12:57]} bxa4 {[%emt 0:00:26]} 20. Bd6 {[%emt 0:03:05]} Bxd6 {[%emt 0:01:42]} 21. Nxd6 {[%emt 0:00:06]} Bd3 {[%emt 0:00:20]} 22. Ne1 {[%emt 0:01:31]} Bg6 {[%emt 0:00:24]} 23. Ra3 {[%emt 0:00:22]} Ra6 {[%emt 0:07:56]} 24. Rca1 {[%emt 0:00:43]} Rfa8 {[%emt 0:00:05]} 25. Nb7 {[%emt 0:00:55]} Kf8 {[%emt 0:02:49]} 26. Nc5 {[%emt 0:00:09]} R6a7 {[%emt 0:00:04]} 27. Rxa4 {[%emt 0:00:18]} Rxa4 {[%emt 0:00:09]} 28. Rxa4 {[%emt 0:00:04]} Rxa4 {[%emt 0:00:11]} 29. Nxa4 {[%emt 0:00:05]} Ke7 {[%emt 0:00:18]} 30. Kf1 {[%emt 0:00:25]} Kd6 {[%emt 0:00:35]} 31. Ke2 {[%emt 0:00:41]} Na5 {[%emt 0:01:49]} 32. Nf3 {[%emt 0:01:30]} Nc4 {[%emt 0:00:58]} 33. Nc5 {[%emt 0:00:05]} h6 {[%emt 0:03:32]} 34. Nd3 {[%emt 0:01:00]} Bf5 {[%emt 0:01:38]} 35. Nde5 {[%emt 0:01:20]} Nxe5 {[%emt 0:00:12]} 36. Nxe5 {[%emt 0:00:06]} f6 {[%emt 0:00:10]} 37. Nc4+ {[%emt 0:00:22]} Kc6 {[%emt 0:00:27]} 38. Nd2 {[%emt 0:00:48]} Bc2 {[%emt 0:01:32]} 39. Ke3 {[%emt 0:00:28]} Kd6 {[%emt 0:00:36]} 40. c4 {[%emt 0:01:34]} Bf5 {[%emt 0:02:10]} 41. Ne4+ {[%emt 0:02:26]} Kc6 {[%emt 0:00:14]} 42. Ng3 {[%emt 0:01:49]} Bg6 {[%emt 0:01:16]} 43. Ne2 {[%emt 0:00:15]} Bf7 {[%emt 0:01:24]} 44. Nf4 {[%emt 0:03:38]} Bg8 {[%emt 0:00:15]} 45. Nh5 {[%emt 0:00:47]} e5 {[%emt 0:03:55]} 46. d5+ {[%emt 0:01:03]} Kc5 {[%emt 0:00:14]} 47. Nxg7 {[%emt 0:00:05]} f5 {[%emt 0:01:00]} 48. Nxf5 {[%emt 0:01:12]} Kxc4 {[%emt 0:00:12]} 49. d6 {[%emt 0:00:10]} Be6 {[%emt 0:00:18]} 50. Ke4 {[%emt 0:00:19]} Bd5+ {[%emt 0:01:23]} 51. Kxe5 {[%emt 0:00:08]} 1-0

[Event "FISCA Open 2022"]
[Site "Cap Aurora"]
[Date "2022.06.27"]
[Round "7.11"]
[White "Corbu, George-Alexandru"]
[Black "Bujorean, Dorel"]
[Result "1/2-1/2"]
[ECO "E46"]
[WhiteElo "1914"]
[BlackElo "1608"]
[Annotator "NA RC"]
[PlyCount "149"]
[EventDate "2022.06.22"]
[EventType "swiss"]
[EventCountry "ROU"]
[SourceTitle "playchess.com"]
[Source "ChessBase"]
[SourceQuality "1"]
[TimeControl "5400+30"]

1. d4 {[%emt 1:27:58]} Nf6 {[%emt 1:27:56]} 2. c4 {[%emt 0:00:30]} e6 {[%emt 0:00:30]} 3. Nc3 {[%emt 0:00:30]} Bb4 {[%emt 0:00:30]} 4. e3 {[%emt 0:00:30]} O-O {[%emt 0:00:30]} 5. Bd2 {[%emt 0:00:30]} c5 {[%emt 0:00:30]} 6. Nf3 {[%emt 0:00:30]} Bxc3 {[%emt 0:00:30]} 7. Bxc3 {[%emt 0:00:30]} Ne4 {[%emt 0:00:30]} 8. Rc1 {[%emt 0:00:30]} Nxc3 {[%emt 0:00:30]} 9. Rxc3 {[%emt 0:00:30]} cxd4 {[%emt 0:00:30]} 10. exd4 {[%emt 0:00:30]} d5 {[%emt 0:00:30]} 11. c5 {[%emt 0:00:30]} Nc6 {[%emt 0:00:30]} 12. Bb5 {[%emt 0:00:30]} Bd7 {[%emt 0:00:30]} 13. Bxc6 {[%emt 0:00:30]} Bxc6 {[%emt 0:00:30]} 14. O-O {[%emt 0:00:00]} Bb5 {[%emt 0:00:00]} 15. Re1 {[%emt 0:00:00]} a5 16. Qd2 {[%emt 0:00:00]} b6 {[%emt 0:00:00]} 17. Qf4 {[%emt 0:00:00]} bxc5 {[%emt 0:00:00]} 18. dxc5 {[%emt 0:00:00]} Qf6 {[%emt 0:00:00]} 19. Qd4 {[%emt 0:00:00]} Rfc8 {[%emt 0:00:00]} 20. Ne5 {[%emt 0:00:00]} Qe7 {[%emt 0:00:00]} 21. f4 {[%emt 0:00:00]} Rc7 {[%emt 0:00:00]} 22. a3 {[%emt 0:00:00]} a4 {[%emt 0:00:00]} 23. Rec1 {[%emt 0:00:00]} Rac8 {[%emt 0:00:00]} 24. Qb4 {[%emt 0:00:00]} Be8 {[%emt 0:00:00]} 25. Nd3 {[%emt 0:00:00]} Rb7 {[%emt 0:00:00]} 26. Qd4 {[%emt 0:00:00]} Bb5 {[%emt 0:00:00]} 27. Nb4 {[%emt 0:00:00]} Bc4 {[%emt 0:00:00]} 28. c6 {[%emt 0:00:00]} Rxb4 {[%emt 0:00:00]} 29. axb4 {[%emt 0:00:00]} Qxb4 {[%emt 0:00:00]} 30. Qa7 {[%emt 0:00:00]} g6 {[%emt 0:00:00]} 31. Kh1 {[%emt 0:00:00]} Qb5 {[%emt 0:00:00]} 32. Qb7 {[%emt 0:00:00]} Qxc6 {[%emt 0:00:00]} 33. Qxc6 {[%emt 0:00:00]} Rxc6 {[%emt 0:00:00]} 34. Kg1 {[%emt 0:00:00]} Rb6 {[%emt 0:00:00]} 35. R1c2 {[%emt 0:00:00]} Kg7 {[%emt 0:00:00]} 36. Rc1 {[%emt 0:00:00]} Kg8 {[%emt 0:00:00]} 37. R1c2 {[%emt 0:00:00]} Kg7 {[%emt 0:00:00]} 38. Rd2 {[%emt 0:00:00]} Kf6 {[%emt 0:00:00]} 39. Kf2 {[%emt 0:00:00]} h5 {[%emt 0:00:00]} 40. Rf3 {[%emt 0:00:00]} Kf5 {[%emt 0:00:00]} 41. g3 {[%emt 0:00:00]} Rb4 {[%emt 0:00:00]} 42. h3 {[%emt 0:00:00]} Bb5 {[%emt 0:00:00]} 43. Re3 {[%emt 0:00:51]} h4 {[%emt 0:00:00]} 44. Re5+ {[%emt 0:04:12]} Kf6 {[%emt 0:00:00]} 45. Re3 {[%emt 0:00:15]} hxg3+ {[%emt 0:00:00]} 46. Kxg3 {[%emt 0:00:08]} d4 {[%emt 0:00:00]} 47. Re5 {[%emt 0:03:20]} d3 {[%emt 0:00:00]} 48. Rc5 {[%emt 0:02:03]} Rb3 {[%emt 0:00:00]} 49. Kf2 {[%emt 0:01:12]} Kg7 {[%emt 0:00:00]} 50. Ke3 {[%emt 0:01:06]} f5 {[%emt 0:00:00]} 51. Rc7+ {[%emt 0:01:28]} Kf6 {[%emt 0:00:00]} 52. Rb7 {[%emt 0:00:59]} Rb4 {[%emt 0:00:00]} 53. Rb6 {[%emt 0:00:13]} Re4+ {[%emt 0:00:00]} 54. Kf3 {[%emt 0:00:12]} Bc4 {[%emt 0:00:00]} 55. Rb4 {[%emt 0:02:19]} g5 {[%emt 0:00:00]} 56. fxg5+ {[%emt 0:00:51]} Kxg5 {[%emt 0:00:00]} 57. Rxa4 {[%emt 0:00:14]} e5 {[%emt 0:00:00]} 58. Rb4 {[%emt 0:01:33]} Re2 {[%emt 0:00:00]} 59. Rxe2 {[%emt 0:00:44]} dxe2 {[%emt 0:00:00]} 60. Kf2 {[%emt 0:00:08]} Bd3 {[%emt 0:00:00]} 61. Rb8 {[%emt 0:05:14]} e4 {[%emt 0:00:00]} 62. Re8 {[%emt 0:00:00]} f4 {[%emt 0:00:00]} 63. b4 {[%emt 0:00:00]} e3+ {[%emt 0:00:00]} 64. Ke1 {[%emt 0:00:00]} Kh4 {[%emt 0:00:00]} 65. Rd8 {[%emt 0:00:00]} Bb5 {[%emt 0:00:00]} 66. Rd5 {[%emt 0:00:00]} Bc6 {[%emt 0:00:00]} 67. Rd4 {[%emt 0:00:02]} Kg3 {[%emt 0:00:00]} 68. Rd6 {[%emt 0:02:16]} Bb5 {[%emt 0:00:00]} 69. Rd5 {[%emt 0:00:06]} Bc4 {[%emt 0:00:00]} 70. Rc5 {[%emt 0:00:25]} Bd3 {[%emt 0:00:07]} 71. Rc3 {[%emt 0:00:06]} Bb5 {[%emt 0:00:23]} 72. Rc5 {[%emt 0:00:03]} Bd3 {[%emt 0:00:09]} 73. Rc3 {[%emt 0:00:10]} Bb5 {[%emt 0:00:04]} 74. Rc5 {[%emt 0:00:03]} Bd3 {[%emt 0:00:10]} 75. Rc3 {[%emt 0:00:04]} 1/2-1/2

[Event "FISCA Open 2022"]
[Site "Cap Aurora"]
[Date "2022.06.27"]
[Round "7.12"]
[White "Nicolae, Marian-Valentin"]
[Black "Costache, Andrei Eugeniu"]
[Result "1/2-1/2"]
[ECO "B24"]
[WhiteElo "1886"]
[BlackElo "1479"]
[Annotator "NA RC"]
[PlyCount "114"]
[EventDate "2022.06.22"]
[EventType "swiss"]
[EventCountry "ROU"]
[SourceTitle "playchess.com"]
[Source "ChessBase"]
[SourceQuality "1"]
[TimeControl "5400+30"]

1. e4 {[%emt 1:31:00]} c5 {[%emt 1:31:00]} 2. Nc3 {[%emt 0:00:30]} d6 {[%emt 0:00:30]} 3. g3 {[%emt 0:00:30]} Nf6 {[%emt 0:00:30]} 4. Bg2 {[%emt 0:00:30]} Nc6 {[%emt 0:00:30]} 5. Nge2 {[%emt 0:00:30]} e6 {[%emt 0:00:30]} 6. O-O {[%emt 0:00:30]} Be7 {[%emt 0:00:30]} 7. d3 {[%emt 0:00:30]} O-O {[%emt 0:00:30]} 8. h3 {[%emt 0:00:30]} Rb8 $11 {[%emt 0:00:30]} 9. f4 {[%emt 0:00:30]} d5 10. exd5 {[%emt 0:00:30]} exd5 {[%emt 0:01:00]} 11. f5 {[%emt 0:00:30]} Re8 {[%emt 0:00:30]} 12. Bg5 {[%emt 0:00:30]} Nh5 {[%emt 0:00:30]} 13. Bd2 {[%emt 0:00:30]} Nf6 {[%emt 0:00:30]} 14. g4 {[%emt 0:00:30]} d4 {[%emt 0:00:30]} 15. Ne4 {[%emt 0:00:30]} Nxe4 {[%emt 0:00:30]} 16. Bxe4 {[%emt 0:00:30]} Bg5 {[%emt 0:00:30]} 17. Bf4 {[%emt 0:00:30]} Ra8 {[%emt 0:00:30]} 18. Qd2 {[%emt 0:00:30]} Bxf4 {[%emt 0:00:30]} 19. Nxf4 Qh4 {[%emt 0:00:30]} 20. Qg2 {[%emt 0:01:00]} Bd7 {[%emt 0:00:30]} 21. Nd5 {[%emt 0:00:30]} Re5 {[%emt 0:00:30]} 22. Kh2 {[%emt 0:00:30]} Rae8 {[%emt 0:00:30]} 23. Qg3 {[%emt 0:00:30]} Qxg3+ {[%emt 0:00:30]} 24. Kxg3 {[%emt 0:00:30]} Ne7 {[%emt 0:00:30]} 25. Nxe7+ {[%emt 0:00:30]} R8xe7 {[%emt 0:00:30]} 26. f6 {[%emt 0:00:30]} gxf6 {[%emt 0:00:30]} 27. Rxf6 {[%emt 0:00:30]} Kg7 {[%emt 0:00:30]} 28. Raf1 {[%emt 0:00:30]} Be6 {[%emt 0:00:30]} 29. h4 {[%emt 0:00:30]} c4 {[%emt 0:00:30]} 30. g5 {[%emt 0:00:30]} cxd3 {[%emt 0:00:30]} 31. cxd3 {[%emt 0:00:30]} Bd5 {[%emt 0:00:30]} 32. Bxd5 {[%emt 0:00:30]} Rxd5 {[%emt 0:00:30]} 33. Kg4 {[%emt 0:00:30]} Rde5 {[%emt 0:00:30]} 34. h5 {[%emt 0:00:30]} Re3 {[%emt 0:00:30]} 35. h6+ {[%emt 0:00:30]} Kf8 {[%emt 0:00:30]} 36. R1f3 {[%emt 0:00:30]} Re2 {[%emt 0:00:30]} 37. Rf2 {[%emt 0:00:30]} Rxf2 {[%emt 0:00:30]} 38. Rxf2 {[%emt 0:00:30]} Re3 {[%emt 0:00:30]} 39. Rf3 {[%emt 0:00:30]} Re2 {[%emt 0:00:30]} 40. Rf4 {[%emt 0:00:30]} Rxb2 {[%emt 0:00:30]} 41. Rxd4 {[%emt 0:00:30]} Rxa2 {[%emt 0:00:30]} 42. Rd8+ {[%emt 0:00:30]} Ke7 {[%emt 0:00:30]} 43. Rh8 {[%emt 0:00:30]} Rg2+ {[%emt 0:00:30]} 44. Kf4 {[%emt 0:00:30]} Rf2+ {[%emt 0:00:30]} 45. Kg3 {[%emt 0:00:30]} Rf1 {[%emt 0:00:30]} 46. Rxh7 {[%emt 0:00:30]} Rg1+ {[%emt 0:00:30]} 47. Kf4 {[%emt 0:00:30]} Rf1+ {[%emt 0:00:30]} 48. Ke4 {[%emt 0:00:30]} Rg1 {[%emt 0:00:30]} 49. Rg7 {[%emt 0:00:30]} Kf8 50. Kd4 {[%emt 0:00:30]} Rg4+ {[%emt 0:01:00]} 51. Kc3 {[%emt 0:00:30]} Rg3 {[%emt 0:00:30]} 52. Kc4 {[%emt 0:00:30]} b5+ {[%emt 0:00:30]} 53. Kxb5 {[%emt 0:00:30]} Rxd3 {[%emt 0:00:30]} 54. g6 {[%emt 0:00:30]} fxg6 {[%emt 0:00:30]} 55. Rxa7 {[%emt 0:00:30]} Kg8 {[%emt 0:00:30]} 56. Rg7+ {[%emt 0:00:30]} Kh8 {[%emt 0:00:30]} 57. Rxg6 {[%emt 0:00:30]} Kh7 {[%emt 0:00:30]} 1/2-1/2

[Event "FISCA Open 2022"]
[Site "Cap Aurora"]
[Date "2022.06.27"]
[Round "7.13"]
[White "Dobra, Costica"]
[Black "Aldea, Maria-Antonia"]
[Result "1/2-1/2"]
[ECO "E11"]
[WhiteElo "1837"]
[BlackElo "1655"]
[Annotator "NA RC"]
[PlyCount "59"]
[EventDate "2022.06.22"]
[EventType "swiss"]
[EventCountry "ROU"]
[SourceTitle "playchess.com"]
[Source "ChessBase"]
[SourceQuality "1"]
[TimeControl "5400+30"]

1. d4 {[%emt 0:00:16]} Nf6 {[%emt 0:00:26]} 2. c4 {[%emt 0:00:23]} e6 {[%emt 0:00:18]} 3. Nf3 {[%emt 0:01:16]} Bb4+ {[%emt 0:00:11]} 4. Bd2 {[%emt 0:00:52]} Qe7 {[%emt 0:00:22]} 5. a3 {[%emt 0:04:33]} Bxd2+ {[%emt 0:00:30]} 6. Nbxd2 {[%emt 0:01:50]} d6 {[%emt 0:01:44]} 7. e4 {[%emt 0:06:24]} e5 {[%emt 0:01:36]} 8. d5 {[%emt 0:01:14]} O-O {[%emt 0:02:24]} 9. Bd3 {[%emt 0:03:31]} a5 {[%emt 0:03:21]} 10. h3 {[%emt 0:01:37]} Na6 $11 {[%emt 0:04:53]} 11. Bc2 {[%emt 0:05:24]} Bd7 {[%emt 0:03:36]} 12. O-O {[%emt 0:01:09]} Nh5 {[%emt 0:06:54]} 13. Ne1 {[%emt 0:09:07]} Nf4 {[%emt 0:03:04]} 14. Kh2 {[%emt 0:04:27]} Qh4 {[%emt 0:15:44]} 15. Ndf3 {[%emt 0:04:40]} Qh6 {[%emt 0:01:11]} 16. Ng1 {[%emt 0:01:20]} f5 {[%emt 0:06:41]} 17. Qd2 {[%emt 0:06:55]} Qf6 {[%emt 0:09:35]} 18. g3 {[%emt 0:04:03]} Ng6 {[%emt 0:00:26]} 19. Qxa5 {[%emt 0:00:56]} fxe4 {[%emt 0:02:29]} 20. Qc3 {[%emt 0:03:50]} Ne7 {[%emt 0:10:36]} 21. Bxe4 {[%emt 0:01:06]} Nc5 {[%emt 0:00:55]} 22. Bg2 {[%emt 0:01:54]} Bf5 {[%emt 0:00:51]} 23. f4 {[%emt 0:02:51]} exf4 {[%emt 0:03:57]} 24. Qxf6 {[%emt 0:01:50]} fxg3+ {[%emt 0:01:41]} 25. Kxg3 {[%emt 0:00:21]} Rxf6 {[%emt 0:00:07]} 26. b4 {[%emt 0:03:59]} Nd3 {[%emt 0:04:20]} 27. Kh2 {[%emt 0:03:45]} Ne5 {[%emt 0:03:51]} 28. Rf4 {[%emt 0:02:55]} N7g6 {[%emt 0:01:49]} 29. Rd4 {[%emt 0:00:54]} Bd7 {[%emt 0:02:38]} 30. c5 {[%emt 0:06:06]} 1/2-1/2

[Event "FISCA Open 2022"]
[Site "Cap Aurora"]
[Date "2022.06.28"]
[Round "8.1"]
[White "Gilea, Lucian"]
[Black "Petre, Nad-Titus"]
[Result "1/2-1/2"]
[ECO "E67"]
[WhiteElo "2277"]
[BlackElo "2297"]
[Annotator "TA"]
[PlyCount "106"]
[EventDate "2022.06.22"]
[EventType "swiss"]
[EventCountry "ROU"]
[SourceTitle "playchess.com"]
[Source "ChessBase"]
[SourceQuality "1"]
[TimeControl "5400+30"]

{[%evp 22,106,0,0,21,0,0,0,0,0,0,0,0,0,0,0,0,0,0,-34,-25,-36,-21,-28,-26,-28,-26,-38,-24,-43,-14,-48,-50,-65,-37,-106,-49,-50,-39,-46,0,0,0,-32,-21,-12,-12,-17,0,0,0,0,0,0,0,0,0,0,0,0,0,0,0,0,0,0,0,0,0,0,0,0,0,0,0,0,0,0,0,0,0,0,0,0,0,0,0]} 1. d4 {[%emt 0:00:03]} Nf6 {[%emt 0:03:05]} 2. c4 {[%emt 0:00:16]} d6 {[%emt 0:00:05]} 3. Nc3 {[%emt 0:00:41]} e5 {[%emt 0:00:07]} 4. Nf3 {[%emt 0:02:15]} Nbd7 {[%emt 0:00:41]} 5. g3 {[%emt 0:01:53]} g6 {[%emt 0:02:21]} 6. Bg2 {[%emt 0:01:36]} Bg7 {[%emt 0:00:09]} 7. dxe5 {[%emt 0:03:44]} dxe5 {[%emt 0:00:28]} 8. Qc2 {[%emt 0:09:20]} O-O {[%emt 0:10:09]} 9. O-O {[%emt 0:00:37]} c6 {[%emt 0:04:27]} 10. b3 {[%emt 0:05:10]} Re8 {[%emt 0:03:39]} 11. Rd1 {[%emt 0:02:04]} Qc7 {[%emt 0:02:42]} 12. Ba3 {[%emt 0:02:50]} Bf8 {[%emt 0:00:27] Prevents Bd6. E67: King's Indian: Fianchetto: 6...Nbd7.} 13. Bb2 {[%emt 0:01:29]} a5 {[%emt 0:13:17]} 14. Na4 {[%emt 0:09:58]} Nc5 {[%emt 0:12:48]} 15. Nxc5 {[%emt 0:00:18]} Bxc5 {[%emt 0:00:07]} 16. e3 {[%emt 0:03:54]} Bf5 {[%emt 0:06:29]} 17. Qe2 {[%emt 0:05:27] [#]} Nd7 $146 {[%emt 0:02:27]} ({Predecessor:} 17... a4 18. h3 axb3 19. axb3 Rxa1 20. Bxa1 Be4 21. Qb2 Bxf3 22. Bxf3 Qe7 {½-½ (33) Antova,G (2293)-Rodriguez Rivera,P (2197) Saint Louis 2022}) 18. Nd2 {[%emt 0:07:57]} Be7 {[%emt 0:07:08]} 19. g4 {[%emt 0:04:00]} Be6 {[%emt 0:00:14]} (19... Bc2 $2 20. Rdc1 $18) 20. Ne4 {[%emt 0:01:41]} Nc5 {[%emt 0:03:56]} 21. h3 {[%emt 0:05:37]} a4 {[%emt 0:05:02]} 22. Nxc5 {[%emt 0:00:50]} Bxc5 {[%emt 0:00:02]} 23. Bc3 {[%emt 0:00:09]} Bf8 {[%emt 0:02:47]} 24. b4 {[%emt 0:06:29]} a3 {[%emt 0:01:02]} 25. Rab1 {[%emt 0:00:47]} f6 {[%emt 0:01:23]} 26. Bf1 {[%emt 0:05:57]} (26. b5 {with more complications.} cxb5 27. Rxb5 Bxc4 28. Qxc4+ Qxc4 29. Bd5+) 26... Qf7 {[%emt 0:01:29][%cal Ob7b5]} 27. Rd2 {[%emt 0:02:24]} b6 {[%emt 0:02:10][%cal Ob6b5,Bb7b6,Bb6c5,Bc5b4][%mdl 32]} (27... b5 $5 {[%cal Re6c4]} 28. Qd1 Bxc4 29. Bxc4 Qxc4 $17) 28. h4 {[%emt 0:06:51]} ({White should play} 28. Rc2 $15) 28... c5 {[%emt 0:03:56]} (28... b5 $17 {[%cal Re6c4]} 29. Qd1 Bxc4 30. Bxc4 Qxc4) 29. bxc5 $15 {[%emt 0:00:26]} Bxc5 {[%emt 0:00:40]} 30. Bb4 {[%emt 0:00:36]} Ra4 {[%emt 0:02:50]} (30... f5 $15 {was preferrable.}) 31. Bxc5 $11 {[%emt 0:00:20]} bxc5 {[%emt 0:00:23]} 32. Qd1 {[%emt 0:00:43]} Rb4 {[%emt 0:00:46]} 33. Rxb4 {[%emt 0:00:41] The position is equal.} cxb4 {[%emt 0:00:02]} 34. Rd8 $1 {[%emt 0:01:40]} Kg7 {[%emt 0:01:33][%cal Oe6g4] [#] Hoping for ...Bxg4!} 35. Rxe8 {[%emt 0:00:32]} Qxe8 {[%emt 0:00:02][%mdl 4096] Endgame KQB-KQB} 36. Qd6 {[%emt 0:00:49]} Bxg4 {[%emt 0:01:24] And now ...Qf8 would win.} 37. Qxb4 {[%emt 0:00:09]} Bf3 {[%emt 0:01:13]} 38. Bg2 {[%emt 0:02:54]} Qc6 {[%emt 0:02:26]} 39. Bxf3 {[%emt 0:01:38]} Qxf3 {[%emt 0:00:05]} 40. Qxa3 {[%emt 0:01:07] [#] Black must now prevent Qe7+. KQ-KQ} Qg4+ {[%emt 0:00:42]} 41. Kf1 {[%emt 0:00:06]} Qd1+ {[%emt 0:00:14]} 42. Kg2 {[%emt 0:00:06] Qe7+ is the strong threat.} Qg4+ {[%emt 0:00:02]} 43. Kf1 {[%emt 0:01:20]} Qxc4+ {[%emt 0:00:02]} 44. Ke1 {[%emt 0:00:13]} Qxh4 {[%emt 0:00:22]} 45. Qa7+ {[%emt 0:00:24]} Kh6 {[%emt 0:00:11]} 46. a4 {[%emt 0:00:01][%cal Ba2a4,Ba4a5,Ba5a6][%mdl 32]} Qb4+ {[%emt 0:00:16]} 47. Kf1 {[%emt 0:00:28]} Qc4+ {[%emt 0:02:09]} 48. Kg1 {[%emt 0:00:12]} Kg5 {[%emt 0:01:00]} 49. a5 {[%emt 0:00:01]} h5 {[%emt 0:00:32]} 50. Qb7 {[%emt 0:00:45]} Kh6 {[%emt 0:02:36]} 51. a6 {[%emt 0:00:47] White threatens a7 and mate.} Qg4+ {[%emt 0:00:04]} 52. Qg2 {[%emt 0:01:01]} Qa4 {[%emt 0:00:10]} 53. Qb7 {[%emt 0:01:37] Threatens to win with a7.} Qg4+ {[%emt 0:00:01] Weighted Error Value: White=0.06 (flawless) /Black=0.07 (flawless)} 1/2-1/2